Cogmind - Beta 15 @@@ ROGUE MODE // 2025.09.09 @ 21:16:42 Player: lite Result: Destroyed by H-61 Shepherd with Heavy Assault Cannon Performance ------------- Evolutions (4) 2000 Regions Visited (11) 2200 Robots Destroyed (117) 585 Value Destroyed (3874) 3874 Prototype IDs (9) 180 Alien Tech Used (0) 0 Bonus (1596) 1596 TOTAL SCORE: 10435 Bonus ------- High Alert Combat Kills 71 Follower Combat Kills 143 Entered Garrisons 400 Used RIF Installer 500 Entered DSFs 500 Friendly Fire -18 Cogmind --------- Core Integrity 0/850 Matter 280/300 Energy 87/100 System Corruption 1% Temperature Cool (6) Movement Core (200) Ox3 Location -6/DSF Parts ------- > --- POWER (1) -------- (None) > --- PROPULSION (5) --- (None) > --- UTILITY (7) ------ Medium Storage Unit Improved Signal Interpreter Relay Coupler [NC] (30) Relay Coupler [Sentry] (21) > --- WEAPON (2) ------- (None) > --- INVENTORY (10) --- Light Angular Momentum Engine Gravmag System Combat Gravmag System Combat Gravmag System Improved VTOL Module Advanced Heat Sink Improved Trap Scanner Phase Shifter Plasma Rifle Peak State ------------ > --- POWER ------------ Light Nuclear Core > --- PROPULSION ------- Gravmag System Combat Gravmag System Combat Gravmag System Combat Gravmag System Combat Gravmag System > --- UTILITY ---------- Medium Storage Unit Improved Trap Scanner Advanced Visual Processing Unit Improved Signal Interpreter Advanced Melee Analysis Suite Improved Light Armor Plating Relay Coupler [NC] > --- WEAPON ----------- Heavy Laser Autogun > --- INVENTORY -------- Light Angular Momentum Engine Light Treads VTOL Module VTOL Module VTOL Module Improved VTOL Module Nuclear Pulse Thruster Advanced Heat Sink Relay Coupler [Sentry] [Rating: 61] Favorites ----------- Power Light Nuclear Core Engine Light Ion Engine Power Core Light Nuclear Core Propulsion Improved Hover Unit Treads Light Treads Leg Carbon-fiber Leg Wheel Armored Wheel Hover Unit Improved Hover Unit Flight Unit VTOL Module Utility Hacking Suite Device Improved Sensor Array Storage Small Storage Unit Processor Advanced Visual Processing Unit Hackware Hacking Suite Protection Core Shielding Weapon Gauss Rifle Energy Gun Particle Gun Energy Cannon Light EM Pulse Cannon Ballistic Gun Gauss Rifle Ballistic Cannon Gauss Cannon Launcher Concussive RPG Special Weapon Plasma Cutter Impact Weapon Maul Slashing Weapon Axe Special Melee Weapon Improved Datajack Build | -11 -10 -9 -9 -8 -7 -7 -7 -6 -6 -6 -6 ------- Run | Yrd Mat Mat Min Mat Fac Gar Fac Fac Gar Fac DSF Slots Evolved 8 | . . 2 . 2 2 . . 2 . . . Power . | . . . . . . . . . . . . Propulsion 3 | . . 1 . 1 . . . 1 . . . Utility 5 | . . 1 . 1 2 . . 1 . . . Weapon . | . . . . . . . . . . . . Parts Attached 133 | 7 3 19 1 29 3 21 17 13 18 2 . Power 14 | 1 1 3 . 3 . 2 1 2 1 . . Engine 8 | 1 1 3 . 1 . . 1 1 . . . Core 6 | . . . . 2 . 2 . 1 1 . . Reactor . | . . . . . . . . . . . . Propulsion 54 | 2 . 9 . 13 . 10 6 6 8 . . Treads 5 | 2 . . . . . . 2 1 . . . Leg 17 | . . 4 . 4 . 6 2 1 . . . Wheel 3 | . . . . . . 2 1 . . . . Hover 15 | . . 5 . 4 . . 1 . 5 . . Flight 14 | . . . . 5 . 2 . 4 3 . . Utility 35 | 1 1 3 1 7 3 4 5 3 5 2 . Device 16 | . . 2 1 3 2 2 3 1 1 1 . Storage 3 | 1 . . . . . . 1 1 . . . Processor 8 | . 1 1 . 2 1 1 . 1 . 1 . Hackware 6 | . . . . 2 . 1 1 . 2 . . Protection 2 | . . . . . . . . . 2 . . Artifact . | . . . . . . . . . . . . Weapon 30 | 3 1 4 . 6 . 5 5 2 4 . . Energy Gun 10 | 1 . 2 . 1 . 3 2 . 1 . . Energy Cannon 2 | . 1 1 . . . . . . . . . Ballistic Gun 11 | 2 . . . 3 . 1 2 . 3 . . Ballistic Cannon 1 | . . . . . . . . 1 . . . Launcher 1 | . . . . . . 1 . . . . . Special Weapon 1 | . . . . . . . . 1 . . . Impact Weapon 1 | . . . . . . . 1 . . . . Slashing Weapon 1 | . . . . 1 . . . . . . . Piercing Weapon . | . . . . . . . . . . . . Special Melee Weapon 2 | . . 1 . 1 . . . . . . . Unidentified Prototypes 3 | . . . 1 1 . . 1 . . . . Parts Lost 60 | . 1 5 . 12 . 16 8 3 7 . 8 Power 8 | . 1 . . 2 . 1 1 1 1 . 1 Propulsion 30 | . . 2 . 8 . 8 5 1 2 . 4 Utility 11 | . . 1 . 1 . 2 2 1 2 . 2 Weapon 11 | . . 2 . 1 . 5 . . 2 . 1 Highest Loss Streak 8 | . 1 2 . 4 . 7 4 3 3 . 8 To Critical Strikes . | . . . . . . . . . . . . Average Backups 6 | 2 6 7 7 6 4 4 5 7 9 9 9 Power . | . 1 1 2 . . . . . . 1 1 Propulsion 2 | . 2 2 2 2 2 2 . 1 5 5 4 Utility 2 | . . 1 1 2 1 2 3 2 1 2 3 Weapon . | . 2 1 1 1 . . . 1 . 1 1 Tool/Special . | . . . . . . . . . . . . Unused Backups 21 | . 1 2 . 7 . . . 6 2 . 3 Power 3 | . . . . . . . . 2 . . 1 Propulsion 5 | . . 1 . 2 . . . 1 1 . . Utility 6 | . 1 . . 2 . . . 1 1 . 1 Weapon 7 | . . 1 . 3 . . . 2 . . 1 Tool/Special . | . . . . . . . . . . . . Average Slot Usage (%) 96 | . 97 98 100 96 99 92 91 97 98 100 99 Engine 2 | . 12 10 11 4 . . . 2 . . . Core 3 | . . . . 2 7 3 3 2 5 6 5 Treads 1 | . 28 5 . . . . 6 4 . . . Leg 9 | . . 19 11 12 . 21 3 14 . . . Hover 8 | . . 8 22 16 30 2 2 . 18 . . Flight 12 | . . . . 6 . 4 15 11 14 33 32 Device 9 | . . 11 11 9 15 9 13 14 4 6 6 Storage 4 | . 14 10 11 4 . . . 3 6 6 6 Processor 13 | . 12 11 11 9 14 18 15 14 19 13 12 Hackware 12 | . . . . 12 15 15 14 13 8 13 13 Protection 1 | . . . . . . . . . 5 6 5 Energy Gun 2 | . 9 6 4 1 . 5 1 1 2 . . Ballistic Gun 6 | . 14 8 6 8 . 6 5 2 5 6 5 Impact Weapon 1 | . . . . . . . 2 5 3 6 6 Special Melee Weapon 2 | . . 3 11 7 6 . . . . . . Peak Build Rating 61 | 6 9 15 20 34 37 42 44 52 61 47 46 Average Rating 33 | 4 7 12 18 26 35 32 36 48 53 45 43 On Entrance 27 | . 6 9 15 19 31 36 41 36 48 47 43 Naked Turns . | . . . . . . . . . . . . Heaviest Build 34 | 13 16 18 16 19 15 14 14 34 28 23 25 Greatest Support 65 | 40 40 40 14 40 28 28 33 48 65 23 23 Greatest Overweight (x) 4 | 3 . 1 1 1 . 1 3 . . . 4 Average Overweight (x) . | . . . . . . . . . . . . Largest Inventory Capacity 10 | 8 8 8 8 8 5 5 8 10 10 10 10 Average Capacity 7 | 7 8 7 8 6 5 5 5 7 10 10 10 Most Carried 10 | 4 8 8 8 8 5 5 8 10 10 10 10 Average Carried 6 | 2 6 7 7 6 4 4 5 7 9 9 9 Final Capacity 10 | 8 8 8 8 5 5 5 5 10 10 10 10 Final Carried 10 | 4 8 6 8 5 5 4 5 10 10 10 9 Class Distribution -------------------- 36% | Scavenger-Mutant 30% | Mutant 22% | Scavenger-Scout 4% | Scavenger-Sprinter 3% | Scavenger-Assassin Dominant Class ---------------- Mutant | -10/Materials Mutant | -9/Materials Mutant | -9/Mines Scavenger-Mutant | -8/Materials Scavenger-Scout | -7/Factory Scavenger-Mutant | -7/Garrison Scavenger-Scout | -7/Factory Scavenger-Mutant | -6/Factory Scavenger-Mutant | -6/Garrison Scavenger-Sprinter | -6/Factory Scavenger-Scout | -6/DSF Resources | -11 -10 -9 -9 -8 -7 -7 -7 -6 -6 -6 -6 ----------- Run | Yrd Mat Mat Min Mat Fac Gar Fac Fac Gar Fac DSF Matter Collected 3636 | 240 148 341 . 880 50 443 593 242 574 6 119 Remotely . | . . . . . . . . . . . . Salvage Created 5391 | . 396 482 . 746 85 593 1525 777 629 22 136 Parts 221 | . 22 34 . 43 1 20 62 23 16 . . Haulers Intercepted 1 | . . . . . . . 1 . . . . Recyclers Shooed 10 | . . . . 1 1 . 7 1 . . . Parts Field Recycled . | . . . . . . . . . . . . Retrieved Matter . | . . . . . . . . . . . . Parts Self-Destructed . | . . . . . . . . . . . . Prevented . | . . . . . . . . . . . . Kills | -11 -10 -9 -9 -8 -7 -7 -7 -6 -6 -6 -6 ------- Run | Yrd Mat Mat Min Mat Fac Gar Fac Fac Gar Fac DSF Combat Hostiles Destroyed 77 | . 6 15 . 13 . 10 10 12 11 . . Melee 8 | . . . . 1 . 1 1 4 1 . . Guns 51 | . 3 13 . 12 . 9 5 . 9 . . Cannons 3 | . . 2 . . . . . 1 . . . AOE 6 | . 3 . . . . . . 3 . . . Classes Destroyed 14 | . 5 2 . 3 . . 2 . 2 . . Worker 9 | . 2 . . . . . 6 . . 1 . Builder 5 | . 1 . . . . . 3 1 . . . Tunneler 1 | . . . . 1 . . . . . . . Hauler 1 | . . . . . . . 1 . . . . Recycler 17 | . 1 . . 2 1 . 10 3 . . . Operator 1 | . . . . 1 . . . . . . . Watcher 6 | . 1 1 . 2 . . 2 . . . . Swarmer 22 | . . 7 . 5 . . 3 6 1 . . Grunt 33 | . 6 6 . 2 . 9 2 3 5 . . Brawler 1 | . . . . . . . . . 1 . . Duelist 3 | . . . . . . . . . 3 . . Sentry 8 | . . 2 . 3 . . 1 1 1 . . Hunter 6 | . . . . 3 . 1 2 . . . . Programmer 4 | . . . . . . . 2 2 . . . Best Kill Streak 7 | . 6 7 . 3 1 3 7 6 4 1 . Combat Bots Only 7 | . 4 7 . 3 . 3 3 4 4 . . Max Kills in Single Turn 3 | . 3 1 . 2 1 1 1 3 2 1 . Gunslinging . | . . . . . . . . . . . . Exploded 3 | . 2 . . . . . . 3 . . . Melee 1 | . . . . 1 . 1 1 1 1 . . Uniques/NPCs Destroyed . | . . . . . . . . . . . . Combat | -11 -10 -9 -9 -8 -7 -7 -7 -6 -6 -6 -6 -------- Run | Yrd Mat Mat Min Mat Fac Gar Fac Fac Gar Fac DSF Hostile Shots Fired 886 | . 56 96 3 198 . 151 127 128 66 . 61 Missed 322 | . 14 24 1 77 . 59 49 55 19 . 24 Hits 564 | . 42 72 2 121 . 92 78 73 47 . 37 Melee 16 | . . . . . . . . . 7 . 9 Projectile 548 | . 42 72 2 121 . 92 78 73 40 . 28 AOE 2 | . . . . . . . . . . . 2 Critical Strikes 27 | . 1 1 . 3 . 3 . 2 5 . 12 Actively Blocked 3 | . . . . . . . . . 1 . 2 Part Disruptions 1 | . . . . . . . 1 . . . . Damage Taken 7799 | . 539 638 22 1304 . 1345 1048 1126 1022 . 755 Core 1844 | . 104 146 11 208 . 317 187 339 204 . 328 Absorbed by Shields 320 | . . 104 . . . 12 . . . . 204 Redirected to Shielding 34 | . . . . . . . . . 7 . 27 Regen/Repaired (Parts) 228 | . . . . 38 . . . 133 . 57 . Core Remaining (%) 61 | 100 58 . 60 62 . . 28 . . . . Volleys Fired 372 | . 30 44 2 70 . 69 60 9 63 . 25 Largest 2 | . 2 2 1 2 . 2 2 1 2 . 1 Hottest 93 | . 76 85 20 91 . 93 51 40 69 . 69 Shots Fired 548 | . 59 87 2 116 . 101 61 9 87 . 26 Gun 519 | . 50 77 2 116 . 100 61 . 87 . 26 Cannon 24 | . 9 10 . . . . . 5 . . . Launcher 1 | . . . . . . 1 . . . . . Special 4 | . . . . . . . . 4 . . . Kinetic 391 | . 31 54 2 90 . 63 61 5 83 . 2 Thermal 127 | . 19 15 . 26 . 37 . 4 2 . 24 Explosive 1 | . . . . . . 1 . . . . . Electromagnetic 29 | . 9 18 . . . . . . 2 . . Robot Hit Streak 21 | . 6 9 1 10 . 21 12 2 8 . . Robot Miss Streak 6 | . 5 6 1 5 . 4 2 4 5 . . Penetration Max 1 | . . . . 1 . 1 1 . 1 . . Secondary Targets 1 | . . . . . . 1 . . . . . Max Gunslinging Chain 1 | . . . . . . 1 . . . . . Shots Hit Robots 399 | . 33 56 2 85 5 80 58 26 53 1 . Core Hits 174 | . 19 26 1 29 1 31 30 8 29 . . Critical Kills 5 | . . . . . . . 2 2 1 . . Critical Parts Destroyed 18 | . . 1 . . . . 8 7 1 1 . Critical Strikes 29 | . . 3 . 1 . 3 10 9 2 1 . Burn 5 | . . 2 . 1 . 2 . . . . . Destroy 2 | . . 1 . . . . 1 . . . . Smash 21 | . . . . . . . 9 9 2 1 . Sever 1 | . . . . . . 1 . . . . . Melee Attacks 129 | . . 1 1 26 6 14 17 33 6 2 23 Impact 81 | . . . . . . . 17 33 6 2 23 Slashing 23 | . . . . 7 3 13 . . . . . Piercing . | . . . . . . . . . . . . Sneak Attacks 39 | . . 1 1 19 4 . 7 5 1 1 . Combat Hostiles 1 | . . . . . . . . . 1 . . Follow-up Attacks . | . . . . . . . . . . . . Damage Inflicted 9049 | . 712 711 6 1117 113 1473 1933 1839 1045 100 . Guns 4883 | . 350 599 6 930 . 1087 1030 . 881 . . Cannons 258 | . 91 110 . . . . . 57 . . . Explosions 1018 | . 271 . . . . 50 60 637 . . . Melee 2888 | . . . . 187 113 336 843 1145 164 100 . Ramming 2 | . . 2 . . . . . . . . . Kinetic 4065 | . 226 357 6 727 . 781 1030 57 881 . . Thermal 1711 | . 395 170 . 203 . 306 . 637 . . . Explosive 50 | . . . . . . 50 . . . . . Electromagnetic 333 | . 91 182 . . . . 60 . . . . Impact 2252 | . . . . . . . 843 1145 164 100 . Slashing 636 | . . . . 187 113 336 . . . . . Piercing . | . . . . . . . . . . . . Highest Corruption 2 | . 1 . . . . . 2 1 1 1 1 Average Corruption 1 | . 1 . . . . . 1 1 1 1 1 Corruption Purged 2 | . . . . . . . 2 . . . . Corruption Blocked . | . . . . . . . . . . . . Effects 48 | . 2 . . . . . 10 5 4 3 24 Message Errors 10 | . . . . . . . 3 1 . . 6 Matter Fused 10 | . . . . . . . 1 1 . 1 7 Heat Flow Errors 6 | . . . . . . . . . 1 1 4 Energy Discharges 7 | . 1 . . . . . . . 1 1 4 Parts Rejected 2 | . . . . . . . . . 2 . . Data Loss (minor) 5 | . . . . . . . 2 2 . . 1 Data Loss (major) 5 | . . . . . . . 4 . . . 1 Misfires 2 | . 1 . . . . . . . . . 1 Alerts 1 | . . . . . . . . 1 . . . Overload Shots . | . . . . . . . . . . . . Overflow Damage 1382 | . 5 . . 51 28 . 481 657 60 100 . Projectiles . | . . . . . . . . . . . . Explosions 212 | . 5 . . . . . . 207 . . . Melee 1170 | . . . . 51 28 . 481 450 60 100 . Knockbacks 9 | . . . . . . . 3 6 . . . Impact 9 | . . . . . . . 3 6 . . . Kinetic . | . . . . . . . . . . . . Secondary . | . . . . . . . . . . . . Self-Inflicted Damage 382 | . 30 . . . . . 153 199 . . . Shots 8 | . 1 . . . . . 5 2 . . . Rammed 1 | . . 1 . . . . . . . . . Targets Rammed 1 | . . 1 . . . . . . . . . Kicked . | . . . . . . . . . . . . Crushed . | . . . . . . . . . . . . Highest Temperature 248 | . 115 201 . 57 . 17 . 14 217 126 248 Average Temperature 50 | . 47 80 . 21 . 4 . 6 62 40 109 Received Heat Transfer 1924 | . 306 158 12 135 . 570 30 204 360 . 149 Effects 1 | . . 1 . . . . . . . . . Interference 1 | . . 1 . . . . . . . . . Siege Activations . | . . . . . . . . . . . . Martial Activations . | . . . . . . . . . . . . Shielding Activations . | . . . . . . . . . . . . Robots Disrupted . | . . . . . . . . . . . . Combat Hostiles . | . . . . . . . . . . . . Robots Corrupted 14 | . . . . . . . 6 7 1 . . Combat Hostiles 9 | . . . . . . . 4 4 1 . . Parts Fried 20 | . . 1 . . . . 11 7 . 1 . Impact Corruptions 38 | . . . . . . . 13 19 3 3 . Robots Melted . | . . . . . . . . . . . . Combat Hostiles . | . . . . . . . . . . . . Parts Melted 4 | . . 1 . 1 . 2 . . . . . Heat Transferred 2936 | . 625 555 . 518 . 888 . 350 . . . Parts Sabotaged . | . . . . . . . . . . . . Parts Stolen . | . . . . . . . . . . . . Parts Stripped . | . . . . . . . . . . . . Power Chain Reactions 2 | . 2 . . . . . . . . . . Alert | -11 -10 -9 -9 -8 -7 -7 -7 -6 -6 -6 -6 ------- Run | Yrd Mat Mat Min Mat Fac Gar Fac Fac Gar Fac DSF Maximum Alert Level 2 | . . 1 . 1 . 2 1 . 2 1 1 Low Security (%) 56 | 100 100 64 100 68 100 52 79 100 21 . . Level 1 39 | . . 35 . 31 . 38 20 . 38 100 99 Level 2 3 | . . . . . . 9 . . 40 . . Level 3 . | . . . . . . . . . . . . Level 4 . | . . . . . . . . . . . . Level 5 . | . . . . . . . . . . . . High Security . | . . . . . . . . . . . . Max Security . | . . . . . . . . . . . . Peak Influence 678 | . 93 274 57 308 155 678 353 191 585 336 232 Initial 350 | . . 22 57 19 140 8 350 94 77 306 210 Average 158 | . 22 140 14 120 84 209 140 83 329 314 227 Influence Increases 4013 | . 170 450 82 808 32 840 516 430 598 65 22 Destroy 0b10 Robot/C 1640 | . 120 300 20 280 . 200 200 240 280 . . Destroy 0b10 Robot/NC 205 | . 25 5 . 30 5 5 110 20 . 5 . Destroy Leader 364 | . 22 62 . 94 . 40 66 60 20 . . Allied During Kill 11 | . . . 2 1 . . . . 8 . . Trap Triggered on 0b10 10 | . . 10 . . . . . . . . . Successful Hack 104 | . . 6 . 23 12 . 3 15 . 45 . Disable Machine 210 | . . 15 . . 15 . 105 45 . 15 15 Anti-Garrison Action 500 | . . . . . . 450 . . 50 . . Destroy Structure 54 | . 3 7 . 5 . 10 2 20 . . 7 Partial Spotted 90 | . . 15 . 30 . . 15 . 30 . . Lose Combat Pursuer 825 | . . 30 60 345 . 135 15 30 210 . . Influence Decreases 3861 | . 117 356 179 550 328 184 991 513 123 349 171 Entered New Map 1144 | . . 31 90 31 168 4 318 99 33 279 91 Time Decay 2072 | . 107 275 77 401 160 . 598 384 . 70 . Lost Part 573 | . 10 50 . 98 . 160 75 30 70 . 80 Lost Ally 72 | . . . 12 20 . 20 . . 20 . . Squads Dispatched 17 | . . 2 . 5 1 . 3 2 . . 4 Investigation 4 | . . 2 . 2 . . . . . . . Extermination 5 | . . . . . . . 3 2 . . . Reinforcement 8 | . . . . 3 1 . . . . . 4 Assault . | . . . . . . . . . . . . Garrison . | . . . . . . . . . . . . Intercept . | . . . . . . . . . . . . Searches Triggered . | . . . . . . . . . . . . Construction Impeded . | . . . . . . . . . . . . Haulers Reinforced . | . . . . . . . . . . . . Active Scanning Responses . | . . . . . . . . . . . . Cargo Convoy Interrupts . | . . . . . . . . . . . . Stealth | -11 -10 -9 -9 -8 -7 -7 -7 -6 -6 -6 -6 --------- Run | Yrd Mat Mat Min Mat Fac Gar Fac Fac Gar Fac DSF Distress Signals 2 | . . . . 2 . . . . . . . Communications Jammed . | . . . . . . . . . . . . Distress Signals . | . . . . . . . . . . . . Times Spotted 161 | . 9 26 5 41 1 16 17 17 22 . 7 Peak Tracking Total 7 | . 3 7 4 7 1 7 3 4 6 . 7 Tactical Retreats 31 | . . 2 1 12 . 3 1 2 10 . . Traps | -11 -10 -9 -9 -8 -7 -7 -7 -6 -6 -6 -6 ------- Run | Yrd Mat Mat Min Mat Fac Gar Fac Fac Gar Fac DSF Traps Triggered 11 | . 1 . . . . 1 2 . 3 1 3 Indirectly . | . . . . . . . . . . . . Trap Hack Attempts 64 | . . 57 . . . 7 . . . . . Triggered . | . . . . . . . . . . . . Disarmed 1 | . . . . . . 1 . . . . . Reprogrammed 3 | . . 3 . . . . . . . . . Reused 1 | . . 1 . . . . . . . . . Traps Extracted . | . . . . . . . . . . . . Installed . | . . . . . . . . . . . . Triggered 1 | . . 1 . . . . . . . . . Machines | -11 -10 -9 -9 -8 -7 -7 -7 -6 -6 -6 -6 ---------- Run | Yrd Mat Mat Min Mat Fac Gar Fac Fac Gar Fac DSF Machines Disabled 16 | . . 1 . . 1 1 7 3 1 1 1 Max in Single Turn 6 | . . 1 . . 1 1 6 3 1 1 1 Garrison Relay 2 | . . . . . . 1 . . 1 . . Machines Repaired . | . . . . . . . . . . . . Machines Dismantled . | . . . . . . . . . . . . Machines Sabotaged . | . . . . . . . . . . . . Overloaded Fab Kills . | . . . . . . . . . . . . Hacking | -11 -10 -9 -9 -8 -7 -7 -7 -6 -6 -6 -6 --------- Run | Yrd Mat Mat Min Mat Fac Gar Fac Fac Gar Fac DSF Machines Accessed 28 | . 2 4 1 7 2 . 1 7 1 3 . Terminals 18 | . 1 3 . 6 1 . 1 3 1 2 . Fabricators 1 | . . . . . . . . 1 . . . Repair Stations 3 | . . . . 1 . . . 1 . 1 . Recycling Units 2 | . 1 . . . . . . 1 . . . Scanalyzers 1 | . . 1 . . . . . . . . . Garrison Access 2 | . . . . . 1 . . 1 . . . Total Hacks 89 | . 4 15 1 29 5 . 4 24 2 5 . Successful 58 | . 2 9 1 18 3 . 3 17 1 4 . Failed 31 | . 2 6 . 11 2 . 1 7 1 1 . Catastrophic 6 | . 1 1 . 2 . . . 1 1 . . Database Lockouts . | . . . . . . . . . . . . Manual 20 | . 1 5 . 9 1 . 3 1 . . . Terminals 54 | . 3 9 . 23 3 . 4 7 2 3 . Fabricators 2 | . . . . . . . . 2 . . . Repair Stations 20 | . . . . 6 . . . 12 . 2 . Recycling Units 2 | . 1 . . . . . . 1 . . . Scanalyzers 6 | . . 6 . . . . . . . . . Garrison Access 4 | . . . . . 2 . . 2 . . . Terminal Hacks 31 | . 1 3 1 14 2 . 3 4 1 2 . Record 1 | . . . . . . . . 1 . . . Prototype ID Bank 3 | . . 1 . 1 . . 1 . . . . Open Door 2 | . . . 1 . . . . . 1 . . Open DSF 2 | . . . . . . . . 1 . 1 . Branch Access Points 1 | . . . . . 1 . . . . . . Emergency Access Points 1 | . . . . 1 . . . . . . . Fabricator Index 1 | . . . . 1 . . . . . . . Alert Level 2 | . . . . . 1 . 1 . . . . Locate Traps 7 | . 1 2 . 3 . . . . . 1 . Dispatch Records 4 | . . . . 3 . . 1 . . . . Security Status 1 | . . . . 1 . . . . . . . Patrol Status 1 | . . . . 1 . . . . . . . Investigation Status 1 | . . . . 1 . . . . . . . Hauler Manifests 2 | . . . . 1 . . . 1 . . . Zone Layout 2 | . . . . 1 . . . 1 . . . Fabricator Hacks 1 | . . . . . . . . 1 . . . Load Schematic 1 | . . . . . . . . 1 . . . Repair Station Hacks 16 | . . . . 4 . . . 10 . 2 . Scan Component 9 | . . . . 2 . . . 6 . 1 . Repair 7 | . . . . 2 . . . 4 . 1 . Recycling Unit Hacks 1 | . 1 . . . . . . . . . . Retrieve Components 1 | . 1 . . . . . . . . . . Scanalyzer 6 | . . 6 . . . . . . . . . Insert Component 3 | . . 3 . . . . . . . . . Analyze 3 | . . 3 . . . . . . . . . Garrison Access Hacks 3 | . . . . . 1 . . 2 . . . Unlock Access 2 | . . . . . 1 . . 1 . . . Coupler Status 1 | . . . . . . . . 1 . . . Unauthorized Hacks . | . . . . . . . . . . . . Terminals . | . . . . . . . . . . . . Fabricators . | . . . . . . . . . . . . Repair Stations . | . . . . . . . . . . . . Recycling Units . | . . . . . . . . . . . . Scanalyzers . | . . . . . . . . . . . . Garrison Access . | . . . . . . . . . . . . Data Cores Recovered . | . . . . . . . . . . . . Used . | . . . . . . . . . . . . Hacking Detections 22 | . 1 3 . 7 2 . 1 5 1 2 . Full Trace Events 4 | . . 2 . 2 . . . . . . . Feedback Events . | . . . . . . . . . . . . Feedback Blocked . | . . . . . . . . . . . . Robot Schematics Acquired . | . . . . . . . . . . . . Robots Built . | . . . . . . . . . . . . Authchips . | . . . . . . . . . . . . Time . | . . . . . . . . . . . . Total Robot Build Rating . | . . . . . . . . . . . . Part Schematics Acquired 3 | . . 3 . . . . . . . . . Parts Built . | . . . . . . . . . . . . Authchips . | . . . . . . . . . . . . Time . | . . . . . . . . . . . . Total Part Build Rating . | . . . . . . . . . . . . Parts Repaired 7 | . . . . 2 . . . 4 . 1 . Time 254 | . . . . 64 . . . 162 . 28 . Parts Recycled . | . . . . . . . . . . . . Recycled Matter . | . . . . . . . . . . . . Retrieved Matter . | . . . . . . . . . . . . Retrieved Components 1 | . 1 . . . . . . . . . . Parts Scanalyzed 3 | . . 3 . . . . . . . . . Part Schematics Acquired 3 | . . 3 . . . . . . . . . Parts Damaged . | . . . . . . . . . . . . Bothacking | -11 -10 -9 -9 -8 -7 -7 -7 -6 -6 -6 -6 ------------ Run | Yrd Mat Mat Min Mat Fac Gar Fac Fac Gar Fac DSF Used RIF Installer 1 | . . . . . . 1 . . . . . Robots Hacked 11 | . . 1 1 7 1 1 . . . . . Non-combat 10 | . . 1 1 7 1 . . . . . . Combat 1 | . . . . . . 1 . . . . . Robot Hacks Applied 21 | . . 1 1 17 1 1 . . . . . parse_system 4 | . . . . 3 . 1 . . . . . no_distress 13 | . . 1 1 11 . . . . . . . find_recycling 2 | . . . . 1 1 . . . . . . check_alert 2 | . . . . 2 . . . . . . . Relay Couplers Released 9 | . . . . . . 4 . . 5 . . Machine Destruction 9 | . . . . . . 4 . . 5 . . Attached 4 | . . . . . . 1 1 . 2 . . Fabnet Peak Effective % . | . . . . . . . . . . . . Robots Rewired 1 | . . . . . 1 . . . . . . Allies Hacked . | . . . . . . . . . . . . Hacks Repelled . | . . . . . . . . . . . . Allies | -11 -10 -9 -9 -8 -7 -7 -7 -6 -6 -6 -6 -------- Run | Yrd Mat Mat Min Mat Fac Gar Fac Fac Gar Fac DSF Total Allies 2 | . . . . . 1 . . . 1 . . Largest Group 1 | . . . . . 1 1 . . 1 . . Highest-Rated Group 51 | . . . . . 25 25 . . 51 . . Highest-Rated Ally 51 | . . . . . 25 25 . . 51 . . Total Orders . | . . . . . . . . . . . . Ally Attacks 41 | . . . 14 17 . . . . 10 . . Total Damage 383 | . . . 40 110 . . . . 233 . . Kills 5 | . . . 1 1 . . . . 3 . . Allies Corrupted . | . . . . . . . . . . . . Allies Melted . | . . . . . . . . . . . . Intel | -11 -10 -9 -9 -8 -7 -7 -7 -6 -6 -6 -6 ------- Run | Yrd Mat Mat Min Mat Fac Gar Fac Fac Gar Fac DSF Active Infowar (turns) 15612 | . . 105 311 5611 332 2318 1955 1128 889 159 2804 Optics 15610 | . . 105 311 5611 332 2318 1955 1128 889 159 2802 Sensors 4721 | . . . . . 312 5 1543 . . 57 2804 Terrain 5201 | . . . . 4353 40 199 609 . . . . Traps 2738 | . . . . . 292 975 406 861 1 . 203 Robot Analysis Total . | . . . . . . . . . . . . Derelict Logs Recovered . | . . . . . . . . . . . . Drone Launches 7 | . . . 3 4 . . . . . . . Drone Recoveries 4 | . . . 2 2 . . . . . . . Exploration | -11 -10 -9 -9 -8 -7 -7 -7 -6 -6 -6 -6 ------------- Run | Yrd Mat Mat Min Mat Fac Gar Fac Fac Gar Fac DSF Turns Passed 16731 | 69 372 768 311 5611 332 2318 1955 1128 889 159 2819 Spaces Moved 7106 | 35 170 545 237 1944 339 537 954 755 1096 281 213 Core 22 | 8 . . . . . 2 12 . . . . Treads 296 | 27 170 99 . . . . . . . . . Legs 1054 | . . 132 . 153 . 156 128 485 . . . Wheels 42 | . . . . . . 42 . . . . . Hover 2868 | . . 314 237 1153 339 180 240 . 404 . 1 Flight 2824 | . . . . 638 . 157 574 270 692 281 212 Fastest Speed 24 | 50 160 52 66 32 48 29 39 24 24 24 24 Average Speed 66 | 162 160 95 75 64 48 71 68 87 38 24 32 Slowest Speed 200 | 200 160 190 126 130 48 120 200 125 77 24 106 Overloaded Moves 6 | . . . . 6 . . . . . . . Propulsion Burnouts 1 | . . . . 1 . . . . . . . Robots Hopped 1 | . . . . . . . 1 . . . . Potential Cave-ins 4 | . . . . 4 . . . . . . . Cave-ins Triggered . | . . . . . . . . . . . . Exploration Rate (%) 29 | 4 32 38 48 49 5 52 11 18 37 7 47 Regions Visited 11 Branch Regions 1 Pre-discovered Areas . | . . . . . . . . . . . . Known Exits Taken 4 | . . . . . 1 . 1 1 . 1 . Unknown Exits Taken 5 | 1 1 1 1 1 . . . . . . . Scrap Searched . | . . . . . . . . . . . . Spaces Dug 23 | . . . . 6 . . . 1 . . 16 Terrain Destroyed 66 | . 3 8 . 12 . 2 2 23 . . 16 Melee 14 | . . . . 3 . . . 1 . . 10 Projectile 18 | . . . . 8 . 2 2 . . . 6 AOE 33 | . 3 8 . . . . . 22 . . . Terrain Rammed . | . . . . . . . . . . . . Walls Destroyed . | . . . . . . . . . . . . Machines Disabled . | . . . . . . . . . . . . Actions | -11 -10 -9 -9 -8 -7 -7 -7 -6 -6 -6 -6 --------- Run | Yrd Mat Mat Min Mat Fac Gar Fac Fac Gar Fac DSF Total 18371 | 44 213 707 367 6170 501 2341 2157 1143 1471 368 2889 Wait 10176 | . 4 1 125 4019 149 1643 1074 290 204 59 2608 Move 7091 | 34 169 544 236 1943 338 535 951 754 1094 280 213 Hop 1 | . . . . . . . 1 . . . . Pick Up 112 | 3 6 16 . 25 2 12 10 19 13 4 2 Fast Attach 59 | 6 1 3 1 7 1 11 12 9 6 1 1 Attach 63 | . 1 9 . 14 1 13 11 3 9 . 2 Detach 17 | . . 2 1 2 . 5 3 1 3 . . Swap 106 | 1 1 14 1 42 3 12 5 10 12 1 4 Drop 86 | . 1 15 . 22 1 8 13 15 7 3 1 Fire 372 | . 30 44 2 70 . 69 60 9 63 . 25 Melee 129 | . . 1 1 26 6 14 17 33 6 2 23 Ram . | . . . . . . . . . . . . Kick . | . . . . . . . . . . . . Crush 1 | . . 1 . . . . . . . . . Escape Stasis 89 | . . . . . . 7 . . 54 18 10 Rewire 5 | . . . . . . 5 . . . . . Trap 64 | . . 57 . . . 7 . . . . . Miscellaneous . | . . . . . . . . . . . . Route ------- -11/Scrapyard -10/Materials -9/Materials -9/Mines -8/Materials -7/Factory (discovered 3 exits: Low x2 / Gar) -7/Garrison -7/Factory -6/Factory -6/Garrison -6/Factory -6/DSF (discovered 1 exit: [*Gar]) History --------- Turn | Location | Event 25 | -11/Scrapyard | Discovered new exit (range 15) 70 | -11/Scrapyard | Entered Materials 318 | -10/Materials | Build established: Mutant 368 | -10/Materials | Discovered new exit (range 16) 442 | -10/Materials | Entered another Materials area 442 | -9/Materials | Evolved 2 slots: Propulsion x1, Utility x1 633 | -9/Materials | Discovered new exit (range 10) 759 | -9/Materials | Destroyed 7 combat bots 1210 | -9/Materials | Entered Mines 1237 | -9/Mines | Found the Drone Emporium 1240 | -9/Mines | Found Prototype Device 1240 | -9/Mines | Identified Thief Drone Bay 1515 | -9/Mines | Discovered new exit (range 8) 1521 | -9/Mines | Entered Materials 1521 | -8/Materials | Evolved 2 slots: Propulsion x1, Utility x1 1565 | -8/Materials | Repaired Imp. Hover Unit 3307 | -8/Materials | Repaired Imp. Hover Unit 4350 | -8/Materials | Lost 4 parts (2p2n) 4641 | -8/Materials | Build established: Scavenger-Mutant 7118 | -8/Materials | Discovered new exit (range 17) 7132 | -8/Materials | Entered Factory 7132 | -7/Factory | Evolved 2 slots: Utility x2 7291 | -7/Factory | Identified exit to Lower Caves 7440 | -7/Factory | Build established: Scavenger-Scout 7464 | -7/Factory | Identified exit to Garrison 7464 | -7/Factory | Entered Garrison 7464 | -7/Garrison | Accompanied by 1 ally 7482 | -7/Garrison | Installed Relay Interface Framework 7728 | -7/Garrison | Lost 7 parts (1p3n1u2w) 8004 | -7/Garrison | Build established: Scavenger-Mutant 8522 | -7/Garrison | Triggered checkpoint 8617 | -7/Garrison | Lost 3 parts (2n1w) 8788 | -7/Garrison | Lost 3 parts (2n1w) 9611 | -7/Garrison | Garrison Relay disabled 9728 | -7/Garrison | Triggered checkpoint 9774 | -7/Garrison | Discovered new exit (range 13) 9782 | -7/Garrison | Identified exit to Factory 9782 | -7/Garrison | Entered Factory 10057 | -7/Factory | Build established: Scavenger-Scout 10368 | -7/Factory | Discovered new exit (range 16) 10877 | -7/Factory | Core integrity fell below 50% 10967 | -7/Factory | Lost 4 parts (1p2n1u) 11652 | -7/Factory | Build established: Mutant 11717 | -7/Factory | Identified exit to Factory 11737 | -7/Factory | Entered another Factory area 11737 | -6/Factory | Evolved 2 slots: Propulsion x1, Utility x1 11887 | -6/Factory | Lost 3 parts (1p1n1u) 12194 | -6/Factory | Build established: Scavenger-Mutant 12506 | -6/Factory | Build established: Mutant 12681 | -6/Factory | Repaired Maul 12743 | -6/Factory | Repaired Imp. VTOL Module 12777 | -6/Factory | Repaired VTOL Module 12816 | -6/Factory | Repaired Shock Rifle 12847 | -6/Factory | Spotted B-75 Beast 12854 | -6/Factory | Identified exit to Garrison 12865 | -6/Factory | Entered Garrison 12961 | -6/Garrison | Rescued a captive Derelict 13027 | -6/Garrison | Triggered checkpoint 13053 | -6/Garrison | Garrison Relay disabled 13077 | -6/Garrison | Build established: Scavenger-Sprinter 13127 | -6/Garrison | Triggered checkpoint 13139 | -6/Garrison | Triggered checkpoint 13146 | -6/Garrison | Core integrity fell below 50% 13180 | -6/Garrison | Lost 3 parts (2n1u) 13394 | -6/Garrison | Lost 3 parts (1p1u1w) 13500 | -6/Garrison | Build established: Scavenger-Mutant 13750 | -6/Garrison | Discovered new exit (range 14) 13754 | -6/Garrison | Entered Factory 13803 | -6/Factory | Repaired Cmb. Gravmag System 13913 | -6/Factory | Identified exit to DSF 13913 | -6/Factory | Entered DSF 14132 | -6/DSF | Additional patrols routed to DSF 14428 | -6/DSF | Build established: Scavenger-Scout 15442 | -6/DSF | Build established: Scavenger-Assassin 15847 | -6/DSF | Build established: Scavenger-Scout 16710 | -6/DSF | Discovered new exit (range 19) 16719 | -6/DSF | Core integrity fell below 20% 16732 | -6/DSF | Destroyed by H-61 Shepherd with Heavy Assault Cannon Last Messages --------------- 16724_ Cmb. Gravmag System severed. 16724_ C-17 Slicer suffers critical hit (Burn). 16726_ Field strength at 15. 16726_ Stasis field depleted. 16726_ Nuclear Pulse Thruster severed. 16727_ Acquired Nuclear Pulse Thruster. 16727_ Imp. VTOL Module severed. 16728_ Acquired Imp. VTOL Module. 16729_ Triggered Stasis Trap. 16729_ A bubble of rippling energy engulfs the area. 16729_ Field strength at 93. 16730_ Penetrated by Slug. 16730_ VTOL Module destroyed. 16730_ C-17 Slicer suffers critical hit (Burn). 16730_ Cmb. Gravmag System severed. 16730_ Field strength at 65. 16731_ Maul severed. 16731_ Field strength at 47. 16731_ Critical hit (Burn: +27). 16732_ Nuclear Pulse Thruster destroyed. Map ----- +----------------------------------------------------+ | ?????????????????????????????????????? | | ?????????????????????????????????????? | | ?????????????????????????????????????? | | ?????????????????????????????????????? | | ?????????????????????????????????????? | | ?????????????????????????????????????? | | ?????????????????????????#"##????????? | | ?????????????????????????""""????????? | | ?????????????????????????""""????????? | | ????????????????????????? <"????????? | | ????????????????????????? "????????? | | ????????????????????????? "????????? | | ?????????????????????????# #????????? | | ????????????????????????##! ##???????? | | ?????????????????????????!! !????????? | | ????????????????????????? ????????? | | ???????????????????????### ##???????? | | ???????????????????????#!! #???????? | | ???????????????????????#! #???????? | | ????????????????????????! #???????? | | ????????????????###?####?# ###??????? | | ????????????????#[[[#[[[?#% !#??????? | | ?????????# A##[[[;[[[## !#??????? | | ????? g !=^ !!#??????? | | ????? H% g cc^ #??????? | | ????? gg =@^% #??????? | | ????????## ##!!!# ## %]];#?????? | | ?????????## ??#!!?# ?# ]]##?????? | | ????????### #?#???###### ###??????? | | ?????????!! =????????#&& &#???????? | | ?????????!! =????????#&& &#???????? | | ??????????! =????????#&& &#???????? | | ????????### #????????### ##???????? | | ????????#!! =????????# &#???????? | | ????????#!! =????????# &#???????? | | ?????????!! =?########## ##???????? | | ??????????# #?# # ### ###??????? | | ????????### ### # ## ""####???? | | ????????# """""#???? | | ????????# ^^ [ ""##"#???? | | ????????#!! ^^[[#&&&# ## """"#??#???? | | ????????#!! [ ####"#" # %"""#??????? | | ????????#########??#######%####??????? | | ???????????????????####### #"#???????? | | ???????????????????# "#???????? | | ???????????????????## ########???????? | | ?????????????????????????????????????? | | ?????????????????????????????????????? | | ?????????????????????????????????????? | | ?????????????????????????????????????? | +----------------------------------------------------+ Best States ------------- Heat Dissipation 56 Energy Generation 18 Energy Capacity 265 Matter Stores 300 Matter Capacity 300 Sight Range 20 Robot Scan Range 15 Terrain Scan Range 16 Terrain Scan Density 10 Armor Coverage 150 Core Shielding 20 Evasion (%) 70 Targeting Accuracy 5 Melee Accuracy 8 Recoil Reduction 2 Offensive Hacking 20 Relay Coupler Types 2 Relay Coupler Value 51 Item Schematics ----------------- Imp. Ion Engine | -9/Materials | Scanalyzed Imp. Hover Unit | -9/Materials | Scanalyzed Trap Extractor | -9/Materials | Scanalyzed Robot Schematics ------------------ None Fabricated ------------ Nothing Repaired ---------- Imp. Hover Unit | 68% | -8/Materials Imp. Hover Unit | 22% | -8/Materials Maul | 25% | -6/Factory Imp. VTOL Module | 62% | -6/Factory VTOL Module | 84% | -6/Factory Shock Rifle | 61% | -6/Factory Cmb. Gravmag System | 62% | -6/Factory Alien Tech Used ----------------- None Achievements -------------- Can't Catch Me Hehehe Universal Adapter Challenges ------------ None Game ------ Seed VariableWeaponsComputer Manual? 0 Play Time 05:13:36 Cumulative 34.1 hours Start 2025.09.09 @ 15:06:17 End 2025.09.09 @ 21:16:42 Sessions 1 Manual Loads 0 Difficulty Rogue Special Mode None Game No. 5 Rogue 3 Adventurer 2 Explorer 0 Win Type - Total 0 Types 0/0/0/0/0/0/0/0/0/0 Lore% 8 Gallery% 20 Achievement% 18 Wizard Run 0 Options --------- Layout 0 ASCII 0 Keyboard 1 Movement Vi Keybinds 0 Fullscreen 2 Font 24/Tamsyn Map View 76x50 Zoom Use 0% Tactical HUD 1 Map Filters NONE Filters NONE Steam 1 RUN: 0b322d4b-0fdf-43ad-8e6a-3980fb3c45c5